Cogmind - Beta 14 @@@ ROGUE MODE // 2025.03.04 @ 09:17:26 Player: Dosh Result: Destroyed by TO-JWE(R) with Subdweller Shrapnel Launcher Performance ------------- Evolutions (0) 0 Regions Visited (2) 400 Robots Destroyed (26) 130 Value Destroyed (607) 607 Prototype IDs (2) 40 Alien Tech Used (0) 0 Bonus (0) 0 TOTAL SCORE: 1177 Bonus ------- None Cogmind --------- Core Integrity 0/250 Matter 300/300 Energy 250/250 System Corruption 3% Temperature Cool (0) Movement Treading (240) Ox1 Location -10/Subcaves Parts ------- > --- POWER (1) -------- Ion Engine > --- PROPULSION (2) --- Light Treads > --- UTILITY (2) ------ Large Storage Unit Improved Terrain Scanner > --- WEAPON (2) ------- Particle Cannon > --- INVENTORY (15) --- Ion Engine Light Ion Engine Light Treads Light Treads Light Treads Small Storage Unit High-capacity Storage Unit Hardened Light Armor Plating Hardened Light Armor Plating Hardened Light Armor Plating Particle Cannon Particle Cannon Grenade Launcher Dirty Datajack (20) Peak State ------------ > --- POWER ------------ Ion Engine > --- PROPULSION ------- Light Treads Light Treads > --- UTILITY ---------- Large Storage Unit Improved Terrain Scanner > --- WEAPON ----------- Particle Cannon Particle Cannon > --- INVENTORY -------- Ion Engine Light Ion Engine Light Treads Light Treads Light Treads Small Storage Unit High-capacity Storage Unit Subdweller Optics Hardened Light Armor Plating Hardened Light Armor Plating Hardened Light Armor Plating Particle Cannon Particle Cannon Grenade Launcher Dirty Datajack [Rating: 13] Favorites ----------- Power Ion Engine Engine Ion Engine Propulsion Light Treads Treads Light Treads Utility Large Storage Unit Device Improved Terrain Scanner Storage Large Storage Unit Processor Improved Targeting Computer Protection Hardened Light Armor Plating Weapon Particle Cannon Energy Cannon Particle Cannon Ballistic Gun Light Assault Rifle Launcher Grenade Launcher Build | -11 -10 -10 ------- Run | Yrd Mat Sub Slots Evolved . | . . . Power . | . . . Propulsion . | . . . Utility . | . . . Weapon . | . . . Parts Attached 22 | 7 11 4 Power 3 | 2 1 . Engine 3 | 2 1 . Core . | . . . Reactor . | . . . Propulsion 5 | 2 3 . Treads 5 | 2 3 . Leg . | . . . Wheel . | . . . Hover . | . . . Flight . | . . . Utility 7 | 1 4 2 Device 2 | . . 2 Storage 2 | 1 1 . Processor 1 | . 1 . Hackware . | . . . Protection 2 | . 2 . Artifact . | . . . Weapon 7 | 2 3 2 Energy Gun . | . . . Energy Cannon 4 | . 3 1 Ballistic Gun 2 | 2 . . Ballistic Cannon . | . . . Launcher 1 | . . 1 Special Weapon . | . . . Impact Weapon . | . . . Slashing Weapon . | . . . Piercing Weapon . | . . . Special Melee Weapon . | . . . Unidentified Prototypes . | . . . Parts Lost 3 | . 1 2 Power . | . . . Propulsion 2 | . 1 1 Utility . | . . . Weapon 1 | . . 1 Highest Loss Streak 2 | . 1 2 To Critical Strikes . | . . . Average Slot Usage (%) 99 | . 98 100 Engine 14 | . 14 14 Treads 27 | . 27 28 Device 4 | . . 11 Storage 14 | . 14 14 Processor 7 | . 12 . Protection 1 | . 1 2 Energy Cannon 27 | . 27 27 Peak Build Rating 13 | 6 12 13 Average Rating 11 | 4 10 12 On Entrance 6 | . 6 12 Naked Turns . | . . . Heaviest Build 38 | 12 38 38 Greatest Support 40 | 40 40 40 Greatest Overweight (x) . | . . . Average Overweight (x) . | . . . Largest Inventory Capacity 15 | 8 15 15 Average Capacity 13 | 7 12 15 Most Carried 15 | 1 14 15 Average Carried 11 | . 9 14 Final Capacity 15 | 8 15 15 Final Carried 14 | 1 14 14 Class Distribution -------------------- 100% | Mutant Dominant Class ---------------- Mutant | -10/Materials Mutant | -10/Subcaves Resources | -11 -10 -10 ----------- Run | Yrd Mat Sub Matter Collected 481 | 261 126 94 Remotely . | . . . Salvage Created 884 | . 619 265 Parts 48 | . 38 10 Haulers Intercepted 2 | . 2 . Recyclers Shooed 1 | . 1 . Parts Field Recycled . | . . . Retrieved Matter . | . . . Parts Self-Destructed 4 | . . 4 Prevented . | . . . Kills | -11 -10 -10 ------- Run | Yrd Mat Sub Combat Hostiles Destroyed 19 | . 12 7 Cannons 18 | . 12 6 Classes Destroyed 9 | . 8 1 Worker 1 | . 1 . Tunneler 1 | . 1 . Hauler 2 | . 2 . Recycler 1 | . 1 . Operator 1 | . 1 . Watcher 1 | . 1 . Swarmer 6 | . 6 . Grunt 6 | . 6 . Subdweller 7 | . . 7 Best Kill Streak 5 | . 5 3 Combat Bots Only 4 | . 4 3 Max Kills in Single Turn 2 | . 2 1 Gunslinging . | . . . Exploded . | . . . Melee . | . . . Uniques/NPCs Destroyed . | . . . Combat | -11 -10 -10 -------- Run | Yrd Mat Sub Hostile Shots Fired 86 | . 51 35 Missed 17 | . 12 5 Damage Taken 1224 | . 422 802 Core 261 | . 71 190 Absorbed by Shields . | . . . Regen/Repaired (Parts) 200 | . 200 . Core Remaining (%) 100 | 100 . . Volleys Fired 69 | . 41 28 Largest 2 | . 2 2 Hottest 136 | . 136 136 Shots Fired 141 | . 82 59 Gun . | . . . Cannon 139 | . 82 57 Launcher 2 | . . 2 Special . | . . . Kinetic . | . . . Thermal 139 | . 82 57 Explosive 2 | . . 2 Electromagnetic . | . . . Robot Hit Streak 20 | . 5 20 Robot Miss Streak 3 | . 3 2 Penetration Max . | . . . Secondary Targets . | . . . Shots Hit Robots 93 | . 48 45 Core Hits 33 | . 21 12 Critical Kills 1 | . . 1 Critical Parts Destroyed . | . . . Critical Strikes 1 | . . 1 Meltdown 1 | . . 1 Melee Attacks . | . . . Impact . | . . . Slashing . | . . . Piercing . | . . . Sneak Attacks . | . . . Combat Hostiles . | . . . Follow-up Attacks . | . . . Damage Inflicted 2101 | . 1083 1018 Guns . | . . . Cannons 1923 | . 1028 895 Explosions 123 | . . 123 Melee . | . . . Ramming 55 | . 55 . Kinetic . | . . . Thermal 1923 | . 1028 895 Explosive 123 | . . 123 Electromagnetic . | . . . Impact . | . . . Slashing . | . . . Piercing . | . . . Highest Corruption 3 | . 3 3 Average Corruption 2 | . 2 3 Corruption Purged . | . . . Corruption Blocked . | . . . Effects 24 | . 5 19 Message Errors 5 | . 1 4 Matter Fused 7 | . 2 5 Heat Flow Errors 1 | . . 1 Energy Discharges 4 | . . 4 Data Loss (minor) 2 | . 1 1 Data Loss (major) 2 | . 1 1 Misfires 3 | . . 3 Overload Shots . | . . . Overflow Damage 4 | . 4 . Projectiles 4 | . 4 . Explosions . | . . . Melee . | . . . Knockbacks . | . . . Impact . | . . . Kinetic . | . . . Secondary . | . . . Self-Inflicted Damage . | . . . Shots . | . . . Rammed 11 | . 11 . Targets Rammed 11 | . 11 . Kicked . | . . . Crushed . | . . . Highest Temperature 392 | . 392 262 Average Temperature 119 | . 131 66 Received Heat Transfer 472 | . 129 343 Effects 6 | . 6 . Energy Bleed 1 | . 1 . Interference 4 | . 4 . Damage (minor) 1 | . 1 . Siege Activations . | . . . Robots Corrupted . | . . . Combat Hostiles . | . . . Parts Fried . | . . . Impact Corruptions . | . . . Robots Melted 1 | . . 1 Combat Hostiles 1 | . . 1 Parts Melted 8 | . 3 5 Heat Transferred 3478 | . 1850 1628 Parts Sabotaged . | . . . Parts Stolen . | . . . Parts Stripped . | . . . Power Chain Reactions . | . . . Alert | -11 -10 -10 ------- Run | Yrd Mat Sub Peak Influence 270 | . 270 . Initial . | . . . Average 124 | . 130 . Maximum Alert Level 1 | . 1 . Low Security (%) 73 | 100 72 . Level 1 26 | . 27 . Level 2 . | . . . Level 3 . | . . . Level 4 . | . . . Level 5 . | . . . High Security . | . . . Max Security . | . . . Squads Dispatched 3 | . 3 . Investigation 2 | . 2 . Extermination . | . . . Reinforcement 1 | . 1 . Assault . | . . . Garrison . | . . . Intercept . | . . . Searches Triggered . | . . . Construction Impeded . | . . . Haulers Reinforced . | . . . Active Scanning Responses . | . . . Cargo Convoy Interrupts . | . . . Stealth | -11 -10 -10 --------- Run | Yrd Mat Sub Distress Signals . | . . . Communications Jammed . | . . . Distress Signals . | . . . Times Spotted 28 | . 19 9 Peak Tracking Total 5 | . 5 3 Tactical Retreats 2 | . 2 . Traps | -11 -10 -10 ------- Run | Yrd Mat Sub Traps Triggered 8 | . 6 2 Indirectly . | . . . Trap Hack Attempts . | . . . Triggered . | . . . Disarmed . | . . . Reprogrammed . | . . . Reused 1 | . . 1 Traps Extracted . | . . . Installed 1 | . . 1 Triggered . | . . . Most Traps Carried 1 | . . 1 Machines | -11 -10 -10 ---------- Run | Yrd Mat Sub Machines Disabled . | . . . Max in Single Turn . | . . . Machines Repaired . | . . . Machines Dismantled . | . . . Machines Sabotaged . | . . . Overloaded Fab Kills . | . . . Hacking | -11 -10 -10 --------- Run | Yrd Mat Sub Machines Accessed 7 | . 7 . Terminals 6 | . 6 . Fabricators . | . . . Repair Stations 1 | . 1 . Recycling Units . | . . . Scanalyzers . | . . . Garrison Access . | . . . Total Hacks 23 | . 23 . Successful 14 | . 14 . Failed 9 | . 9 . Catastrophic . | . . . Database Lockouts . | . . . Manual 14 | . 14 . Terminals 16 | . 16 . Fabricators . | . . . Repair Stations 7 | . 7 . Recycling Units . | . . . Scanalyzers . | . . . Garrison Access . | . . . Terminal Hacks 2 | . 2 . Robot Schematic 1 | . 1 . Prototype ID Bank 1 | . 1 . Fabricator Hacks . | . . . Repair Station Hacks 6 | . 6 . Scan Component 3 | . 3 . Repair 3 | . 3 . Recycling Unit Hacks . | . . . Scanalyzer . | . . . Garrison Access Hacks . | . . . Unauthorized Hacks 6 | . 6 . Terminals 6 | . 6 . Botnet 1 | . 1 . Skim 5 | . 5 . Fabricators . | . . . Repair Stations . | . . . Recycling Units . | . . . Scanalyzers . | . . . Garrison Access . | . . . Data Cores Recovered . | . . . Used . | . . . Hacking Detections 6 | . 6 . Full Trace Events . | . . . Feedback Events . | . . . Feedback Blocked . | . . . Robot Schematics Acquired 1 | . 1 . Robots Built . | . . . Authchips . | . . . Time . | . . . Total Robot Build Rating . | . . . Part Schematics Acquired . | . . . Parts Built . | . . . Authchips . | . . . Time . | . . . Total Part Build Rating . | . . . Parts Repaired 3 | . 3 . Time 84 | . 84 . Parts Recycled . | . . . Recycled Matter . | . . . Retrieved Matter . | . . . Retrieved Components . | . . . Parts Scanalyzed . | . . . Part Schematics Acquired . | . . . Parts Damaged . | . . . Bothacking | -11 -10 -10 ------------ Run | Yrd Mat Sub Used RIF Installer . | . . . Robots Hacked . | . . . Non-combat . | . . . Combat . | . . . Robot Hacks Applied . | . . . Relay Couplers Released . | . . . Fabnet Peak Effective % . | . . . Robots Rewired . | . . . Allies Hacked . | . . . Hacks Repelled . | . . . Allies | -11 -10 -10 -------- Run | Yrd Mat Sub Total Allies . | . . . Largest Group . | . . . Highest-Rated Group . | . . . Highest-Rated Ally . | . . . Total Orders . | . . . Ally Attacks . | . . . Total Damage . | . . . Kills . | . . . Allies Corrupted . | . . . Allies Melted . | . . . Intel | -11 -10 -10 ------- Run | Yrd Mat Sub Robot Analysis Total . | . . . Derelict Logs Recovered . | . . . Drone Launches . | . . . Drone Recoveries . | . . . Exploration | -11 -10 -10 ------------- Run | Yrd Mat Sub Turns Passed 2393 | 70 1407 916 Spaces Moved 1206 | 39 685 482 Core 2 | 2 . . Treads 1204 | 37 685 482 Legs . | . . . Wheels . | . . . Hover . | . . . Flight . | . . . Fastest Speed 50 | 50 160 160 Average Speed 159 | 154 160 160 Slowest Speed 160 | 160 160 160 Overloaded Moves . | . . . Propulsion Burnouts . | . . . Robots Hopped . | . . . Cave-ins Triggered . | . . . Exploration Rate (%) 44 | 3 98 31 Regions Visited 2 Branch Regions 1 Pre-discovered Areas 2 | . 2 . Known Exits Taken . | . . . Unknown Exits Taken 2 | 1 1 . Scrap Searched 2 | . . 2 Spaces Dug . | . . . Terrain Destroyed 7 | . . 7 Melee . | . . . Projectile . | . . . AOE 7 | . . 7 Terrain Rammed . | . . . Walls Destroyed . | . . . Machines Disabled . | . . . Actions | -11 -10 -10 --------- Run | Yrd Mat Sub Total 1518 | 45 905 568 Wait 189 | . 141 48 Move 1204 | 38 684 482 Hop . | . . . Pick Up 15 | . 13 2 Fast Attach 13 | 6 6 1 Attach 1 | . 1 . Detach 2 | . 2 . Swap 8 | 1 4 3 Drop 5 | . 2 3 Fire 69 | . 41 28 Melee . | . . . Ram . | . . . Kick . | . . . Crush 11 | . 11 . Escape Stasis . | . . . Rewire . | . . . Trap 1 | . . 1 Miscellaneous . | . . . Route ------- -11/Scrapyard -10/Materials (discovered 6 exits: [*Mat x3] / [*Min x2] / *Sub) -10/Subcaves (discovered 1 exit: [*Mat]) History --------- Turn | Location | Event 28 | -11/Scrapyard | Discovered new exit (range 15) 71 | -11/Scrapyard | Entered Materials 262 | -10/Materials | Discovered new exit (range 16) 311 | -10/Materials | Build established: Mutant 353 | -10/Materials | Discovered new exit (range 15) 591 | -10/Materials | Discovered new exit (range 16) 660 | -10/Materials | Discovered new exit (range 14) 733 | -10/Materials | Discovered new exit (range 16) 1118 | -10/Materials | Discovered new exit (range 15) 1186 | -10/Materials | Learned location of Mines (-9) 1223 | -10/Materials | Repaired Lgt. Treads 1233 | -10/Materials | Learned location of 3 exits from Materials 1250 | -10/Materials | Repaired Lgt. Treads 1270 | -10/Materials | Loaded intel: 1 repair station location 1284 | -10/Materials | Repaired Particle Cannon 1295 | -10/Materials | Learned location of 1 exit from Recycling 1308 | -10/Materials | Learned location of 2 exits from Materials 1310 | -10/Materials | Learned Storage emergency access door positions 1311 | -10/Materials | Learned location of Mines (-8) 1319 | -10/Materials | Learned Storage machine intel 1478 | -10/Materials | Entered Subcaves 1703 | -10/Subcaves | A swath of the cavern ceiling suddenly collapsed 1784 | -10/Subcaves | Core integrity fell below 50% 2188 | -10/Subcaves | Disturbed a concealed Subdweller 2227 | -10/Subcaves | Core integrity fell below 20% 2357 | -10/Subcaves | Discovered new exit (range 14) 2394 | -10/Subcaves | Destroyed by TO-JWE(R) with Subdweller Shrapnel Launcher Last Messages --------------- 02251_ Searching scrap... 02251_ Found Battle Rifle. 02251_ Found Shrapnel Trap. 02251_ Found 47 Matter. 02252_ System corrupted: Matter fused (-5). 02252_ Acquired 5 matter. 02253_ Searching scrap... 02253_ Found Sub. Laser. 02253_ Found Sub. Beam Cannon. 02253_ Found 67 Matter. 02258_ Dropped Broken Sub. Optics. 02258_ Acquired Shrapnel Trap. 02302_ Dropped Shrapnel Trap. 02303_ Installed Shrapnel Trap. 02320_ System corrupted: Energy discharge (-27). 02337_ W0-2UP(R) destroyed. 02357_ 7 MQE ZD&PXH<|: CSA,JTEBWR17FSL0O 02357_ EXIT=FOUND 02394_ Particle Cannon destroyed. 02394_ Lgt. Treads destroyed. Map ----- +----------------------------------------------------+ | ???????#???#????### ##???# | | ????????????#??## ##### ## | | ?????????#???### ### ## | | ??????????????# | | ?????????###??# | | ??????????????## ### | | ?????????#????## ####### | | ?????????????## ! "##?????## | | ??????????????# "#% ###?#??????? | | ?????????????## [%"##! #??????????# | | ????????????### =*""# ###?#?#?????#? | | ?????????????## ## ####?????????#?# | | ??????#????##?# ####?#????#?#???#?? | | ???????#??????# ###???#?#????????? | | ??????????#???###### ##???#?????????? | | ????#????????????### ##????#???????? | | ???????????#???????# #????????????# | | ???????????????#??## ##???????????? | | ?????????????#?????## ##????#??????? | | ???????#?#???????#?#####%! #????#??????? | | ????????????#??#??????# #?#?????????? | | ????????#????##???????## #???????????? | | ?????????#??##????#???# ##???????????? | | ???????????????????##### ##??#???????? | | ?????????????####### ### ##?????????? | | ?????????????# @<## ##?## ##????????? | | ????????????#<&# #" ##### #????????? | | ????????????#R&# # #????????? | | ????????????#$?# #< < #????????? | | ????????????#$?### # ## ##???????? | | ????????????#??# ######? #???????#? | | ??????????????# #?????# #????????? | | ??????????????# #?????##????????? | | ??????????????## ## ??????????????? | | ???????????????##?## ???#?????????? | | ?????????????????#??# # ###????????????? | | ????????????????????? ##??????????????? | | ????????????????????? ????????????????? | | ????????????????????? #???????????????? | | ????????????????????? ????????????????? | | ????????????????????? ???????????????? | | ????????????#????????#??? ?????????????? | | ???????????????????????????????????????? | | ???????????????????????????????????????? | | ???????????????????????????????????????? | | ???????????????????????????????????????? | | ???????????????????????????????????????? | | ???????????????????????????????????????? | | ???????????????????????????????????????? | | ???????????????????????????????????????? | +----------------------------------------------------+ Best States ------------- Heat Dissipation 25 Energy Generation 10 Energy Capacity 250 Matter Stores 300 Matter Capacity 300 Sight Range 21 Terrain Scan Range 16 Terrain Scan Density 10 Armor Coverage 150 Evasion (%) 40 Targeting Accuracy 6 Recoil Reduction 2 Item Schematics ----------------- None Robot Schematics ------------------ M-13 Machinist | -10/Materials | Hacked Fabricated ------------ Nothing Alien Tech Used ----------------- None Achievements -------------- None Challenges ------------ None Game ------ Seed ExplosiveAblativeScrapsphere Manual? 0 Play Time 00:14:21 Cumulative 643.1 hours Start 2025.03.04 @ 09:07:07 End 2025.03.04 @ 09:17:26 Sessions 1 Manual Loads 0 Difficulty Rogue Special Mode None Game No. 346 Rogue 346 Adventurer 0 Explorer 0 Win Type - Total 51 Types 34/4/5/1/1/1/3/1/1 Lore% 89 Gallery% 88 Achievement% 89 Wizard Run 0 Options --------- Layout 0 ASCII 0 Keyboard 1 Movement Numpad Keybinds 0 Fullscreen 2 Font 18/SmallcapsGlow Map View 76x50 Zoom Use 0% Tactical HUD 1 Map Filters NONE Filters NONE Steam 1 RUN: ef4f7e49-4ab3-478c-a308-40e6c067f3f5